bitfinex/quotes_ETHUSD_20260302
["timestamp","ask_amount","ask_price","bid_price","bid_amount"]
[1772471216121,2.89213331,2061.6,2060.9,1.21405989]
[1772471216295,4.10488861,2061.5,2060.9,0.001]
[1772471216497,1.2127553,2061.5,2060.9,0.001]
[1772471217704,2.8927664,2061.4,2060.9,0.001]
[1772471218409,1.21282685,2061.3,2060.9,0.001]
[1772471219802,2.89141877,2061.2,2060.9,0.001]
[1772471220298,4.85130742,2061.5,2060.9,0.001]
[1772471220299,1.21273269,2061.5,2060.9,0.001]
[1772471220825,2.32259468,2061.7,2060.9,1.44701409]
[1772471220994,2.89129217,2061.6,2060.9,0.001]
[1772471221621,2.32259468,2061.7,2060.9,1.44701409]
[1772471222022,2.89047428,2061.6,2060.9,0.001]
[1772471222442,4.10316542,2061.6,2060.9,0.001]
[1772471222655,1.21269114,2061.6,2060.9,1.44701409]
[1772471222935,2.88955527,2061.5,2060.9,0.001]
[1772471223459,2.88955527,2061.5,2060.7,0.001]
[1772471223602,2.88955527,2061.4,2060.7,0.001]
[1772471223801,2.88955527,2061.3,2060.7,0.001]
[1772471224002,2.88955527,2061.2,2060.9,0.001]
[1772471224312,2.88955527,2061.1,2060.9,0.001]
[1772471224517,4.10255866,2061.0,2060.9,0.001]
[1772471224717,4.10255866,2061.0,2060.7,0.001]
[1772471225025,2.88955527,2060.9,2060.7,0.001]
[1772471226114,1.21300339,2061.0,2060.7,0.001]
[1772471226327,2.88566308,2060.9,2060.6,0.001]
[1772471226527,2.32812111,2060.8,2060.2,0.001]
[1772471226835,5.1798199,2060.7,2060.2,0.001]
[1772471227033,5.1798199,2060.6,2060.2,0.001]
[1772471227234,2.88566308,2060.5,2060.0,0.001]
[1772471227405,4.00266308,2060.4,2059.1,1.2141058]
[1772471227736,2.88566308,2060.3,2059.2,1.44801409]
[1772471227932,1.117,2060.4,2059.4,1.44601409]
[1772471228430,1.21341552,2060.3,2059.5,0.002]
[1772471228818,4.85317823,2060.6,2059.5,1.44801409]
[1772471229626,4.85284784,2060.7,2059.6,2.56504195]
[1772471229809,4.85213167,2061.0,2059.7,1.44601409]
[1772471230126,1.21300339,2061.0,2060.0,1.44601409]
[1772471230345,1.118,2061.4,2060.2,1.44601409]
[1772471230504,4.08823415,2061.3,2060.4,1.44601409]
[1772471230700,1.21282685,2061.3,2060.4,1.44601409]
[1772471230904,1.21282685,2061.3,2060.5,0.002]
[1772471231127,2.87533657,2061.2,2060.3,0.001]
[1772471231326,2.87533657,2061.2,2060.2,0.001]
[1772471232357,2.87533657,2061.1,2060.3,0.001]
[1772471232507,2.33000339,2061.0,2060.3,0.001]
[1772471232823,2.87466495,2060.9,2059.8,1.21366799]
[1772471233835,2.87466495,2060.9,2059.9,0.002]
[1772471235015,1.21312111,2060.8,2059.9,1.44801409]
[1772471235353,1.21312111,2060.8,2060.0,1.44601409]
[1772471235509,1.21312111,2060.8,2060.1,0.001]
[1772471236430,2.87534326,2060.7,2060.1,0.002]
[1772471236639,1.119,2060.6,2060.1,0.002]
[1772471236966,1.119,2060.6,2059.6,2.65980045]
[1772471236967,1.21329774,2060.5,2059.4,1.21392304]
[1772471237132,1.83266933,2060.4,2060.0,0.001]
[1772471237334,1.83266933,2060.1,2059.4,0.002]
[1772471237530,1.119,2060.0,2059.1,0.002]
[1772471238071,1.119,2060.0,2059.2,1.44601409]
[1772471238276,1.119,2060.3,2059.8,0.001]
[1772471238430,1.119,2060.3,2059.9,0.001]
[1772471238629,1.119,2060.3,2059.9,0.002]
[1772471238855,1.21329774,2060.5,2059.9,0.002]
[1772471239070,5.97124901,2061.1,2060.0,2.65960632]
[1772471239350,2.33194454,2061.1,2060.2,1.44601409]
[1772471240029,1.21285708,2061.3,2060.3,1.44801409]
[1772471240231,1.21285708,2061.3,2060.4,1.44601409]
[1772471240728,1.21285708,2061.3,2060.5,0.002]
[1772471240936,1.121,2061.5,2060.5,1.44801409]
[1772471241159,1.121,2061.5,2060.7,1.44601409]
[1772471241160,0.002,2061.5,2060.7,1.44601409]
[1772471241340,1.21472854,2061.5,2060.8,1.44601409]
[1772471241546,0.002,2061.5,2060.8,1.44601409]
[1772471241857,0.002,2061.5,2060.9,1.44801409]
[1772471242353,0.002,2061.5,2060.9,1.44601409]
[1772471243152,0.002,2061.5,2061.0,1.21300339]
[1772471243336,0.002,2061.5,2061.0,0.002]
[1772471243536,0.002,2061.5,2060.6,1.21319289]
[1772471243732,0.002,2061.5,2060.6,0.002]
[1772471243938,3.99216157,2061.4,2060.6,0.002]
[1772471244270,2.87416157,2061.3,2060.6,0.002]
[1772471245555,1.21288569,2061.2,2060.6,0.002]
[1772471246765,1.21288569,2061.2,2060.6,0.001]
[1772471247063,1.21287389,2061.3,2060.7,0.001]
[1772471247748,1.21287389,2061.3,2060.8,0.001]
[1772471248466,1.21287389,2061.3,2060.9,0.001]
[1772471248962,1.21287389,2061.3,2060.4,1.44601409]
[1772471249139,1.21287389,2061.3,2060.5,0.002]
[1772471249140,2.88025885,2061.2,2060.5,0.002]
[1772471249463,2.88025885,2061.2,2060.3,1.44601409]
[1772471249758,1.21287389,2061.3,2060.4,2.65937071]
[1772471249965,1.21287389,2061.3,2060.5,1.44601409]
[1772471250559,0.002,2061.1,2060.6,0.002]
[1772471253150,0.002,2061.1,2060.2,0.001]
[1772471253356,1.83266933,2060.9,2060.2,0.001]
[1772471253662,1.83266933,2060.9,2060.0,0.001]
[1772471253663,5.17510875,2060.8,2060.0,0.001]
[1772471253846,4.09413191,2060.7,2060.0,0.001]
[1772471254042,4.00095193,2060.6,2060.0,0.001]
[1772471254269,2.88095193,2060.5,2060.0,0.001]
[1772471254471,2.88095193,2060.4,2060.0,0.001]
[1772471254662,1.12,2060.6,2060.0,0.001]
[1772471254865,2.87877087,2060.5,2060.0,0.001]
[1772471255877,1.21325393,2060.6,2060.0,0.001]
[1772471257251,1.21323358,2060.7,2060.0,0.001]
[1772471257547,2.87744461,2060.6,2060.0,0.001]
[1772471257876,1.21329774,2060.5,2060.0,0.001]
[1772471258063,4.00044461,2060.4,2060.0,0.001]
[1772471258245,2.87744461,2060.3,2060.0,0.001]
[1772471258852,1.123,2060.4,2060.0,0.001]
[1772471259256,1.21329774,2060.5,2060.0,0.001]
[1772471260062,1.21326821,2060.6,2060.0,0.001]
[1772471260558,2.87488765,2060.5,2060.0,0.001]
[1772471262185,1.21335662,2060.4,2060.0,0.001]
[1772471263095,1.21335662,2060.4,2059.8,0.001]
[1772471263096,1.128,2060.3,2059.0,3.61732567]
[1772471263254,1.83266933,2060.2,2059.0,2.99883487]
[1772471263450,1.83266933,2060.2,2059.0,0.33864225]
[1772471263451,1.83266933,2059.9,2059.0,0.33864225]
[1772471263655,3.99989576,2059.8,2058.8,1.21424578]
[1772471263855,2.87089576,2059.7,2058.7,2.6603513]
[1772471264157,1.21376899,2059.7,2058.7,2.6603513]
[1772471264665,1.21376899,2059.7,2058.7,2.66036927]
[1772471265395,1.21376899,2059.7,2058.7,1.44601409]
[1772471265883,1.21376899,2059.7,2058.7,2.66036585]
[1772471266287,1.21376899,2059.7,2058.7,1.44601409]
[1772471266458,4.69218486,2059.6,2058.4,1.44601409]
[1772471266662,1.21376899,2059.7,2058.4,1.44601409]
[1772471268278,1.21376899,2059.7,2058.6,1.44601409]
[1772471268472,1.21376899,2059.7,2058.8,1.44601409]
[1772471269574,1.21376899,2059.7,2058.6,0.95]
[1772471269893,1.21376899,2059.7,2058.6,2.39601409]
[1772471270090,1.21376899,2059.7,2058.6,1.44601409]
[1772471270762,1.21376899,2059.7,2058.7,1.21435857]
[1772471270968,1.21376899,2059.7,2058.8,1.44601409]
[1772471270969,1.129,2059.6,2058.8,1.44601409]
[1772471271486,1.129,2059.6,2058.6,1.21437236]
[1772471271802,1.129,2059.6,2058.6,2.16537236]
[1772471271969,1.129,2059.6,2058.6,1.21437236]
[1772471272161,1.83266933,2059.5,2058.2,6.30741443]
[1772471272365,1.83266933,2059.5,2058.3,1.21459456]
[1772471272565,1.83266933,2058.9,2058.2,0.003]
[1772471272791,1.83266933,2058.6,2057.5,1.21505101]
[1772471272997,1.83266933,2058.6,2057.6,0.003]
[1772471273689,1.128,2058.5,2057.6,0.003]
[1772471275106,1.21453556,2058.4,2057.6,0.003]
[1772471276598,1.21453556,2058.4,2057.6,1.44901409]
[1772471276991,2.34251954,2058.5,2057.8,0.001]
[1772471277425,1.83266933,2058.4,2057.8,0.001]
[1772471278310,1.83266933,2058.4,2057.6,0.003]
[1772471278986,1.83266933,2058.1,2057.3,0.001]
[1772471279180,1.82030137,2057.3,2055.7,1.44601409]
[1772471279386,1.82030137,2057.3,2056.1,1.44601409]
[1772471279387,1.129,2057.2,2056.1,1.44601409]
[1772471280008,1.129,2057.2,2056.3,1.44601409]
[1772471280193,2.96166933,2057.2,2056.2,0.002]
[1772471280389,1.129,2057.2,2056.2,0.002]
[1772471280590,2.96166933,2057.2,2056.2,0.002]
[1772471281022,2.34425827,2057.2,2056.2,0.002]
[1772471281196,1.83266933,2057.5,2056.2,0.002]
[1772471281197,2.34306682,2057.5,2056.4,1.44601409]
[1772471281397,1.83266933,2056.8,2055.6,1.21616237]
[1772471281602,1.128,2056.7,2056.0,0.002]
[1772471281796,1.128,2056.7,2055.2,5.81469827]
[1772471281797,1.128,2056.7,2055.5,1.21621031]
[1772471281996,1.83266933,2056.8,2055.3,1.44601409]
[1772471282311,1.127,2056.7,2055.5,1.44601409]
[1772471283110,1.21559856,2056.6,2055.3,1.44601409]
[1772471283308,1.21559856,2056.6,2055.5,1.44601409]
[1772471283697,1.21559856,2056.6,2055.2,2.66244071]
[1772471283928,1.21559856,2056.6,2055.3,1.44601409]
[1772471284422,1.83266933,2056.9,2055.3,2.39401409]
[1772471284723,1.83266933,2056.6,2055.3,1.44601409]
[1772471284900,1.127,2056.5,2055.3,1.44601409]
[1772471285321,1.21571678,2056.4,2055.3,1.44601409]
[1772471285522,1.21571678,2056.4,2055.3,2.6623693]
[1772471286402,1.21571678,2056.4,2055.4,1.44601409]
[1772471287294,4.86286714,2056.7,2055.5,2.66226317]
[1772471287498,1.128,2056.6,2055.5,1.44601409]
[1772471288326,2.96066933,2056.6,2055.2,1.44601409]
[1772471288526,1.83266933,2056.3,2055.2,1.44601409]
[1772471288726,2.23368453,2055.9,2055.0,0.1627567]
[1772471288926,1.128,2055.8,2055.0,0.1627567]
[1772471289095,1.83266933,2055.7,2055.0,1e-08]
[1772471289300,5.99175286,2056.1,2055.2,2.66244071]
[1772471289500,5.99175286,2056.1,2055.3,1.44601409]
[1772471289501,1.2159533,2056.0,2055.3,1.44601409]
[1772471289825,1.128,2056.1,2055.3,1.44601409]
[1772471290046,2.34390246,2056.1,2055.3,1.44601409]
[1772471290220,2.34390246,2056.1,2055.0,1.2594953]
[1772471290527,1.21590246,2056.1,2055.1,1.25949529]
[1772471290730,1.21590246,2056.1,2055.2,1.25949529]
[1772471291414,4.86334061,2056.2,2055.4,1.25949529]
[1772471291620,4.86334061,2056.2,2055.0,1.2594953]
[1772471291821,4.86334061,2056.2,2055.2,0.001]
[1772471291822,3.11703523,2056.0,2055.2,0.001]
[1772471292535,1.2843659,2056.0,2055.2,0.001]
[1772471293737,2.54114409,2055.9,2055.2,0.001]
[1772471294027,1.128,2055.8,2055.2,0.001]
[1772471294230,1.128,2055.7,2055.2,0.001]
[1772471295731,1.21618992,2055.6,2055.2,0.001]
[1772471296297,1.28461682,2055.3,2054.1,3.12458244]
[1772471296500,1.129,2055.2,2054.1,1.86751672]
[1772471297240,2.41361682,2055.2,2054.1,1.86749833]
[1772471297442,1.21618992,2055.6,2054.4,1.35965862]
[1772471297840,1.21618992,2055.6,2054.5,2.5734997]
[1772471298164,1.21618992,2055.6,2054.5,1.35665862]
[1772471298331,1.32101274,2055.4,2054.4,0.003]
[1772471298507,2.57871465,2055.2,2054.4,0.003]
[1772471298702,1.32101274,2055.0,2054.4,0.003]
[1772471298946,1.129,2055.1,2054.4,0.003]
[1772471299240,1.31987757,2055.0,2054.0,2.0]
[1772471299548,1.31987757,2054.8,2054.0,2.0]
[1772471299752,1.21672263,2054.7,2054.0,2.0]
[1772471300045,1.129,2054.6,2054.0,2.0]
[1772471300806,1.21672263,2054.7,2054.0,4.57379549]
[1772471301028,2.34572263,2054.7,2054.1,1.35665862]
[1772471301237,1.31873818,2055.2,2054.2,1.35665862]
[1772471301238,1.21648581,2055.1,2054.2,1.35665862]
[1772471301832,4.86593894,2055.2,2054.3,1.35665862]
[1772471302205,4.86593894,2055.2,2054.0,2.0]
[1772471302451,4.86593894,2055.2,2054.0,3.35665862]
[1772471303139,4.86593894,2055.2,2054.1,1.35665862]
[1772471303708,4.86593894,2055.2,2054.1,2.57371751]
[1772471303906,4.86593894,2055.2,2054.0,3.21709946]
[1772471304108,4.86593894,2055.2,2054.0,4.57375808]
[1772471304553,6.19920216,2055.2,2054.0,3.35665862]
[1772471304707,1.33326322,2055.1,2054.0,3.35665862]
[1772471304913,3.91197787,2054.9,2054.0,2.0]
[1772471305158,1.131,2054.8,2054.0,2.0]
[1772471305323,2.46303486,2054.8,2054.0,2.0]
[1772471305819,1.21672263,2054.7,2054.0,2.0]
[1772471306141,1.21672263,2054.7,2054.1,1.35665862]
[1772471306438,1.21672263,2054.7,2054.2,0.001]
[1772471306843,1.131,2054.8,2054.2,0.001]
[1772471307045,2.34766545,2054.8,2054.2,1.35765862]
[1772471307249,1.131,2054.8,2054.2,1.35765862]
[1772471307547,2.34767245,2054.8,2054.2,1.35765862]
[1772471307749,1.131,2054.8,2054.2,1.35765862]
[1772471307906,1.131,2054.8,2054.3,1.21695954]
[1772471308108,2.34766622,2054.8,2054.2,1.35765862]
[1772471308508,2.34766815,2054.8,2054.3,1.35665862]
[1772471308951,4.86548285,2055.3,2054.3,1.35665862]
[1772471309112,1.132,2055.2,2054.3,1.35665862]
[1772471309308,4.86548285,2055.3,2054.3,1.35665862]
[1772471309623,5.99748285,2055.3,2054.3,1.35665862]
[1772471310012,2.34801245,2055.9,2054.7,1.35665862]
[1772471310246,1.21587855,2056.2,2055.0,1.35665862]
[1772471311243,1.21587855,2056.2,2055.3,1.35665862]
[1772471312134,0.002,2056.3,2055.5,1.35665862]
[1772471312364,0.002,2056.3,2055.6,1.35665862]
[1772471312676,1.21768506,2056.5,2055.6,1.35665862]
[1772471312892,1.32525163,2056.4,2055.2,2.57306133]
[1772471313386,1.32396309,2056.2,2054.7,1.35665862]
[1772471313671,1.32396309,2056.0,2054.7,1.35665862]
[1772471314031,1.21618992,2055.6,2054.3,2.57361816]
[1772471314337,3.9787038,2055.5,2054.3,2.57361816]
[1772471314657,1.131,2055.5,2054.3,2.57361816]
[1772471314858,1.131,2055.4,2054.4,1.35665862]
[1772471315753,5.99486036,2056.0,2054.9,1.35665862]
[1772471315959,1.131,2056.0,2055.0,1.35665862]
[1772471316367,1.21601245,2055.9,2055.1,2.57314443]
[1772471316578,1.21601245,2055.9,2055.1,1.35665862]
[1772471316732,1.21601245,2055.9,2054.7,2.57334233]
[1772471317471,2.84774793,2055.8,2054.7,2.57334233]
[1772471317765,2.84774793,2055.8,2054.2,7.44777868]
[1772471317766,1.31882137,2055.7,2054.4,2.30365862]
[1772471317961,2.84774793,2055.6,2054.4,2.30365862]
[1772471318131,2.44850669,2055.5,2054.3,1.21695954]
[1772471318331,1.21630826,2055.4,2054.3,1.21695954]
[1772471318636,1.21630826,2055.4,2054.3,1.35665862]
[1772471318831,2.85085095,2055.3,2054.3,1.35665862]
[1772471319045,1.21630826,2055.4,2054.3,1.35665862]
[1772471319245,2.85095771,2055.3,2054.3,1.35665862]
[1772471319462,1.132,2055.3,2054.3,1.35665862]
[1772471320357,1.21648581,2055.1,2054.3,2.57358767]
[1772471320546,1.21648581,2055.1,2054.5,0.001]
[1772471320748,5.99780039,2055.3,2054.5,1.35765862]
[1772471320749,2.34838461,2055.3,2054.5,1.35765862]
[1772471321942,5.9965479,2055.7,2054.5,1.35765862]
[1772471322141,2.85574693,2055.6,2054.5,1.35765862]
[1772471322331,1.21624908,2055.5,2054.7,1.35665862]
[1772471323046,1.21624908,2055.5,2054.5,0.001]
[1772471323546,2.85673642,2055.4,2054.5,1.21784055]
[1772471323746,1.132,2055.3,2054.5,1.21784055]
[1772471323948,1.21624908,2055.5,2054.5,2.57449917]
[1772471324171,1.21624908,2055.5,2054.6,1.35665862]
[1772471324335,1.21636744,2055.3,2054.6,2.57340709]
[1772471325562,2.34836744,2055.3,2054.5,0.001]
[1772471326967,3.65512897,2055.3,2054.5,0.001]
[1772471327131,2.85336377,2055.2,2054.5,0.001]
[1772471327744,4.15738783,2055.2,2054.5,0.001]
[1772471327952,2.85336377,2055.1,2054.5,0.001]
[1772471328153,2.85336377,2055.1,2054.3,0.001]
[1772471328361,4.15716203,2055.1,2054.3,0.001]
[1772471328543,4.15716203,2055.0,2054.3,0.001]
[1772471328872,1.21666342,2054.8,2054.3,0.001]
[1772471329365,1.21666342,2054.8,2053.8,2.48330752]
[1772471329573,1.21666342,2054.8,2053.5,1.26607829]
[1772471329773,1.21666342,2054.8,2053.3,1.21749293]
[1772471329957,2.8522148,2054.7,2053.5,1.26607829]
[1772471330151,1.134,2054.7,2053.8,1.26607829]
[1772471331065,1.21678185,2054.6,2053.8,2.48327896]
[1772471331573,1.21678185,2054.6,2053.8,1.26607829]
[1772471331738,1.21678185,2054.6,2053.4,1.26607829]
[1772471331937,2.853555,2054.5,2053.4,1.26607829]
[1772471332138,2.853555,2054.5,2054.1,0.003]
[1772471332965,1.21690031,2054.4,2054.1,0.003]
[1772471333167,1.136,2054.3,2054.1,0.003]
[1772471334863,1.21701879,2054.2,2054.1,0.003]
[1772471335775,1.21701879,2054.2,2053.5,1.26607829]
[1772471336083,1.21701879,2054.2,2053.5,1.2690783]
[1772471336286,1.21701879,2054.2,2053.5,0.00300001]
[1772471336980,1.21701879,2054.2,2053.7,0.001]
[1772471337482,1.21701879,2054.2,2053.1,1.26607829]
[1772471337644,1.21701879,2054.2,2053.2,0.00300001]
[1772471338044,1.21701879,2054.2,2053.2,1.2690783]
[1772471338268,1.143,2054.1,2053.2,1.2690783]
[1772471338477,1.21701879,2054.2,2053.2,1.2690783]
[1772471338645,1.143,2054.1,2053.2,1.2690783]
[1772471339054,1.21713729,2054.0,2053.4,1.26607829]
[1772471339355,4.86756396,2054.5,2053.4,1.26607829]
[1772471339567,1.142,2054.4,2053.6,1.26607829]
[1772471339872,1.142,2054.4,2053.5,0.00300001]
[1772471340245,2.46040852,2054.4,2053.5,0.00300001]
[1772471340458,4.86756396,2054.5,2053.5,1.2690783]
[1772471340657,1.142,2054.3,2053.5,1.2690783]
[1772471340883,3.60298145,2055.0,2053.5,2.58171466]
[1772471341088,2.35860421,2054.9,2053.8,1.26607829]
[1772471341546,1.21660421,2054.9,2054.0,1.26607829]
[1772471341764,4.86641685,2055.0,2054.0,1.26607829]
[1772471341765,1.21658379,2055.0,2054.0,1.26607829]
[1772471341973,1.21358378,2055.0,2054.0,1.26607829]
[1772471342304,1.31840852,2054.8,2053.5,1.26607829]
[1772471342602,5.31157994,2054.7,2053.5,1.26607829]
[1772471342762,1.31840852,2054.5,2053.5,1.26607829]
[1772471342966,2.85117142,2054.4,2053.1,1.26607829]
[1772471343287,2.35895954,2054.3,2053.2,2.48368982]
[1772471343691,2.35895954,2054.3,2053.3,1.26607829]
[1772471344076,1.142,2054.2,2053.3,1.26607829]
[1772471344966,1.142,2054.2,2052.9,5.21134199]
[1772471344967,1.31840852,2054.1,2052.9,5.21134199]
[1772471345195,1.21713729,2054.0,2053.1,1.26607829]
[1772471345710,2.35906366,2054.2,2053.4,1.26607829]
[1772471346370,1.142,2054.2,2053.4,1.26607829]
[1772471347000,6.00865482,2054.8,2053.7,1.26607829]
[1772471347177,1.31840852,2054.7,2053.7,2.48339314]
[1772471347385,6.00865482,2054.8,2053.8,1.26607829]
[1772471347677,1.21666342,2054.8,2053.8,1.26607829]
[1772471347880,1.142,2055.0,2053.9,1.26607829]
[1772471348121,2.35854501,2055.0,2053.9,1.26607829]
[1772471349176,1.142,2055.0,2054.1,1.26607829]
[1772471349585,0.002,2054.8,2054.1,1.26607829]
[1772471350498,0.002,2054.8,2053.8,2.4832941]
[1772471351307,4.18166514,2054.7,2053.4,3.42757122]
[1772471351485,4.00425662,2054.6,2053.4,3.42757122]
[1772471351682,1.141,2054.6,2053.5,1.26607829]
[1772471352313,0.002,2054.8,2053.5,1.26607829]
[1772471352516,2.86458581,2054.7,2053.5,1.26607829]
[1772471353289,1.21678185,2054.6,2053.8,1.26607829]
[1772471353490,1.21674877,2054.7,2053.8,1.26607829]
[1772471353891,1.21870913,2054.8,2053.8,1.26607829]
[1772471354289,0.002,2055.0,2054.4,1.26607829]
[1772471355025,0.002,2055.1,2054.7,1.3834583]
[1772471355589,0.002,2055.1,2054.7,2.6001806]
[1772471356118,0.002,2055.1,2054.7,1.3834583]
[1772471356301,0.002,2055.1,2054.4,2.60035861]
[1772471356501,4.86471162,2055.7,2054.7,1.3834583]
[1772471356704,2.86884923,2055.6,2054.7,1.3834583]
[1772471357304,1.21624908,2055.5,2054.8,1.21666342]
[1772471357529,1.21624908,2055.5,2054.7,2.6001362]
[1772471358026,1.21618294,2055.7,2054.9,3.21454133]
[1772471358213,1.27184048,2055.6,2054.5,2.58913838]
[1772471358797,1.27184048,2055.4,2054.0,1.21708906]
[1772471359001,1.27184048,2055.2,2054.0,1.21708906]
[1772471359304,4.13779832,2055.1,2054.0,1.21708906]
[1772471359505,1.21660421,2054.9,2054.0,2.58943247]
[1772471360211,6.13825733,2055.1,2054.0,2.58943247]
[1772471360212,1.14,2055.3,2054.2,1.84219792]
[1772471360413,7.73290529,2055.2,2054.2,3.21454133]
[1772471360604,4.86594326,2055.2,2054.2,1.37234341]
[1772471360949,1.27184048,2055.1,2054.0,1.21708906]
[1772471361107,1.27184048,2055.1,2053.9,7.18597493]
[1772471361108,1.27184048,2055.0,2053.9,2.58949527]
[1772471361304,2.86668066,2054.9,2053.9,2.58949527]
[1772471361529,1.21672263,2054.7,2053.9,2.58949527]
[1772471361728,1.21672263,2054.7,2053.9,1.21715186]
[1772471361932,1.21672263,2054.7,2053.7,1.21729251]
[1772471363124,1.21672263,2054.7,2054.4,0.001]
[1772471363441,1.21672263,2054.7,2053.7,1.21729251]
[1772471363646,1.21672263,2054.7,2054.1,0.001]
[1772471364002,1.14,2054.6,2054.1,0.001]
[1772471364649,1.21672263,2054.7,2054.1,0.001]
[1772471364820,2.35672263,2054.7,2054.1,0.001]
[1772471365500,1.21672263,2054.7,2054.1,0.001]
[1772471365705,1.141,2054.7,2054.1,0.001]
[1772471366323,1.21665354,2054.9,2054.1,1.37334341]
[1772471367122,1.21665354,2054.9,2054.1,0.001]
[1772471367525,4.8663007,2055.0,2054.1,0.001]
[1772471368420,2.86797064,2054.9,2054.1,0.001]
[1772471368817,1.27184048,2054.8,2054.1,0.001]
[1772471369233,2.86729702,2054.7,2054.1,0.001]
[1772471369543,1.142,2054.6,2054.1,0.001]
[1772471369736,1.21660421,2054.9,2054.1,1.37334341]
[1772471370433,1.21660421,2054.9,2054.1,0.001]
[1772471370434,4.55464117,2054.8,2054.1,0.001]
[1772471370607,1.27184048,2054.8,2054.1,0.001]
[1772471371635,1.21672263,2054.7,2054.1,0.001]
[1772471373520,1.21654501,2055.0,2054.1,0.001]
[1772471373724,4.42705649,2054.9,2054.1,0.001]
[1772471373935,3.28305649,2054.8,2054.1,0.001]
[1772471374120,1.144,2054.9,2054.1,0.001]
[1772471374319,3.28312769,2054.8,2054.1,0.001]
[1772471374545,2.41584048,2054.9,2054.1,0.001]
[1772471374546,4.55494036,2054.7,2054.1,0.001]
[1772471374743,3.28309988,2054.6,2054.1,0.001]
[1772471374929,3.42857293,2054.9,2054.1,0.001]
[1772471374930,1.144,2054.9,2054.1,0.001]
[1772471375130,3.2835099,2054.8,2054.1,0.001]
[1772471375344,1.144,2054.9,2054.1,0.001]
[1772471375599,1.27184048,2054.7,2054.1,0.001]
[1772471375712,4.5023482,2054.6,2054.1,0.001]
[1772471375917,4.42956234,2054.5,2054.1,0.001]
[1772471376155,1.144,2054.5,2054.1,0.001]
[1772471376768,2.49020792,2055.4,2054.3,2.49453879]
[1772471376920,9.42692887,2055.3,2054.3,1.37234341]
[1772471377120,1.27184048,2055.1,2054.1,0.001]
[1772471377354,5.29201705,2055.0,2054.1,0.001]
[1772471377534,2.87417657,2054.9,2054.1,0.001]
[1772471377747,1.21666342,2054.8,2054.1,0.001]
[1772471378221,1.21666342,2054.8,2054.1,1.37334341]
[1772471378424,1.21666342,2054.8,2054.3,0.001]
[1772471378718,0.002,2054.5,2054.3,0.001]
[1772471379364,1.21664898,2054.9,2054.3,0.001]
[1772471379548,1.21648581,2055.1,2054.3,1.37334341]
[1772471379762,0.002,2055.0,2054.4,2.58924372]
[1772471380451,0.002,2055.0,2054.5,1.84219792]
[1772471380659,0.002,2055.0,2054.6,1.37234341]
[1772471381056,0.002,2055.0,2054.4,1.21690031]
[1772471381429,0.002,2055.0,2054.5,1.37234341]
[1772471382258,0.002,2055.0,2054.6,1.21678185]
[1772471382553,0.002,2055.0,2054.6,2.58912526]
[1772471383267,0.002,2055.4,2054.7,1.37234341]
[1772471384466,0.002,2055.4,2054.8,1.21666342]
[1772471385066,0.002,2055.4,2054.8,1.37234341]
[1772471385365,0.002,2055.6,2055.1,3.21454133]
[1772471385581,0.002,2055.6,2055.1,1.37234341]
[1772471385790,0.002,2055.6,2054.8,1.37234341]
[1772471386067,1.27384048,2055.6,2054.6,2.16077509]
[1772471386256,1.27384048,2055.6,2054.6,1.21677509]
[1772471386456,2.48808956,2055.5,2054.5,3.53313626]
[1772471387060,2.48808956,2055.5,2054.5,2.58917676]
[1772471387061,1.27184048,2055.4,2054.5,2.58917676]
[1772471387437,1.21624908,2055.5,2054.3,1.21791456]
[1772471387640,1.21624908,2055.5,2054.4,3.1622327]
[1772471387641,4.11472988,2055.4,2054.4,3.1622327]
[1772471387840,1.24223896,2055.4,2054.4,3.1622327]
[1772471388269,1.24223896,2055.4,2054.4,1.84219792]
[1772471388474,1.24223896,2055.2,2054.3,1.21795857]
[1772471388769,1.24223896,2055.2,2054.3,2.53799335]
[1772471389337,1.21636744,2055.3,2054.5,1.32003478]
[1772471390467,4.86546976,2055.4,2054.6,1.21678185]
[1772471390672,2.45854722,2055.5,2054.6,1.21678185]
[1772471390872,0.002,2055.6,2054.8,1.32003478]
[1772471391076,1.21819013,2055.6,2054.8,1.32003478]
[1772471391671,1.21819013,2055.6,2055.0,1.32003478]
[1772471391672,0.002,2055.6,2055.0,1.32003478]
[1772471391968,1.2181932,2055.6,2055.0,1.32003478]
[1772471392186,0.002,2055.6,2055.2,1.84219792]
[1772471392471,0.002,2055.6,2055.3,1.21636744]
[1772471393471,0.002,2055.6,2055.2,1.21638504]
[1772471393677,0.002,2055.3,2054.9,0.945]
[1772471394575,0.002,2055.3,2055.0,1.21654501]
[1772471394785,0.002,2055.3,2054.7,2.53773829]
[1772471395303,1.24423896,2055.3,2054.7,0.001]
[1772471395578,1.24423896,2055.3,2054.5,1.21782376]
[1772471395742,1.24423896,2055.3,2054.5,1.21781873]
[1772471396381,0.002,2055.3,2054.5,2.53785351]
[1772471397144,0.002,2055.3,2054.6,3.1622327]
[1772471397340,0.002,2055.3,2054.7,0.947]
[1772471397673,4.86723304,2055.5,2054.7,0.947]
[1772471397674,1.21829235,2055.5,2054.9,1.84219792]
[1772471397875,1.21829235,2055.5,2054.6,3.1622327]
[1772471398195,1.21829235,2055.5,2054.7,0.947]
[1772471398395,1.21829235,2055.5,2054.7,2.26703478]
[1772471398597,1.24223896,2055.4,2054.7,0.947]
[1772471399214,1.21636744,2055.3,2054.5,2.16481873]
[1772471399569,1.21636744,2055.3,2054.6,1.32003478]
[1772471400713,4.86546976,2055.4,2054.6,1.32003478]
[1772471400714,1.21825151,2055.5,2054.9,3.1622327]
[1772471400897,1.21825151,2055.5,2054.6,1.32003478]
[1772471401065,1.21825151,2055.5,2054.7,1.21672263]
[1772471401066,0.002,2055.5,2054.7,1.21672263]
[1772471401666,1.21601009,2056.0,2055.2,1.84219792]
[1772471402264,1.21601009,2056.0,2055.2,3.1622327]
[1772471402466,0.002,2056.1,2055.5,1.84219792]
[1772471402897,0.002,2056.1,2055.6,0.947]
[1772471403271,0.002,2056.1,2055.5,2.16320208]
[1772471404997,0.002,2056.1,2055.6,1.32003478]
[1772471405196,0.002,2056.3,2055.8,1.2160716]
[1772471405397,0.002,2056.5,2056.0,1.84219792]